Cogmind - Beta 12 @@@ ROGUE MODE // 2023.08.02 @ 02:02:05 Player: ktur Result: Destroyed by G-67 Veteran with Plasma Rifle Performance ------------- Evolutions (4) 2000 Regions Visited (15) 3000 Robots Destroyed (224) 1120 Value Destroyed (8725) 8725 Prototype IDs (20) 400 Alien Tech Used (0) 0 Bonus (1055) 1055 TOTAL SCORE: 16300 Bonus ------- High Alert Combat Kills 336 Follower Combat Kills 466 Network Hubs Disabled 400 Met Imprinter 300 Met R17 at Cetus 500 Friendly Fire -947 Cogmind --------- Core Integrity 0/850 Matter 268/300 Energy 100/100 System Corruption 46% Temperature Cool (0) Movement Core (2500) Ox49 Location -6/Hub_04(d) Parts ------- > --- POWER (1) -------- (None) > --- PROPULSION (4) --- (None) > --- UTILITY (7) ------ Cargo Storage Unit Enhanced Optical Array Makeshift Salvage Targeting Computer Core Analyzer > --- WEAPON (3) ------- Enhanced Force Rifle Advanced KE Penetrator > --- INVENTORY (30) --- High-capacity Storage Unit Experimental Sensor Array Advanced Signal Interpreter Advanced Melee Analysis Suite Weapon Mount Microactuators Microactuators Reaction Control System Improved Hacking Suite Improved Hacking Suite Authchip [Device] Authchip [Armor] Authchip [Armor] Authchip [Weapon] CR-A16's Pointy Stick Kinetic Spear Kinetic Spear Kinetic Spear Peak State ------------ > --- POWER ------------ Quantum Reactor > --- PROPULSION ------- Centrium Heavy Treads Centrium Heavy Treads > --- UTILITY ---------- Improved Cooling System Cargo Storage Unit Enhanced Optical Array Core Analyzer Centrium Medium Armor Plating Medium Regenerative Plating > --- WEAPON ----------- Cooled Proton Cannon Cooled Proton Cannon Gauss Rifle > --- INVENTORY -------- Mini Fusion Reactor Centrium Heavy Treads High-capacity Storage Unit Energy Well High-capacity Matter Pod Experimental Sensor Array Advanced Signal Interpreter Makeshift Salvage Targeting Computer Advanced Melee Analysis Suite Weapon Mount Microactuators Microactuators Reaction Control System Authchip [Device] Authchip [Armor] Authchip [Armor] Authchip [Weapon] Enhanced Force Rifle Enhanced Force Rifle Heavy Machine Gun Advanced KE Penetrator Advanced KE Penetrator Advanced KE Penetrator Rocket Array Powered Hammer CR-A16's Pointy Stick Kinetic Spear Kinetic Spear Kinetic Spear [Rating: 112] Favorites ----------- Power Heavy Ion Engine Engine Heavy Ion Engine Power Core Light Fission Core Reactor Quantum Reactor Propulsion Light Treads Treads Light Treads Leg Aluminum Leg Wheel Compact Wheel Hover Unit Gravmag System Utility Cargo Storage Unit Device Experimental Sensor Array Storage Cargo Storage Unit Processor Core Analyzer Hackware Hacking Suite Protection Improved Light Armor Plating Weapon Enhanced Autogun Energy Gun Improved Lightning Gun Energy Cannon Beam Cannon Ballistic Gun Enhanced Autogun Ballistic Cannon Gauss Cannon Launcher Rocket Array Impact Weapon Powered Hammer Slashing Weapon Ripper Piercing Weapon Kinetic Spear Special Melee Weapon Advanced Datajack Build | -11 -10 -10 -10 -9 -8 -7 -7 -7 -7 -6 -6 -6 -6 -6 -6 ------- Run | Jun Mat Min Exi Min Mat Fac Low Low Zio Pro Fac Ext Cet Arc Hub Slots Evolved 8 | . . . . . 4 2 . . . . 2 . . . . Power . | . . . . . . . . . . . . . . . . Propulsion 2 | . . . . . 1 . . . . . 1 . . . . Utility 5 | . . . . . 2 2 . . . . 1 . . . . Weapon 1 | . . . . . 1 . . . . . . . . . . Parts Attached 270 | 6 19 . 1 . 22 76 6 . 19 8 37 17 23 16 20 Power 11 | 1 1 . . . 2 2 . . 2 . 1 . 1 . 1 Engine 7 | 1 1 . . . 2 1 . . 1 . 1 . . . . Core 1 | . . . . . . . . . 1 . . . . . . Reactor 3 | . . . . . . 1 . . . . . . 1 . 1 Propulsion 45 | 2 2 . . . 6 11 . . 2 . 9 7 3 2 1 Treads 30 | 2 2 . . . 5 6 . . 1 . 2 7 3 1 1 Leg 1 | . . . . . 1 . . . . . . . . . . Wheel 13 | . . . . . . 5 . . 1 . 7 . . . . Hover 1 | . . . . . . . . . . . . . . 1 . Flight . | . . . . . . . . . . . . . . . . Utility 83 | 1 7 . 1 . 7 27 2 . 2 2 15 4 5 6 4 Device 43 | . 5 . . . 2 18 1 . 2 1 7 . 2 4 1 Storage 7 | 1 1 . 1 . 1 1 . . . . 1 . 1 . . Processor 12 | . 1 . . . 3 4 1 . . . . 1 . . 2 Hackware 3 | . . . . . . . . . . . 3 . . . . Protection 18 | . . . . . 1 4 . . . 1 4 3 2 2 1 Artifact . | . . . . . . . . . . . . . . . . Weapon 131 | 2 9 . . . 7 36 4 . 13 6 12 6 14 8 14 Energy Gun 18 | 1 . . . . . 12 . . . . . . . 2 3 Energy Cannon 16 | . 5 . . . . 1 . . . . . 1 7 . 2 Ballistic Gun 58 | 1 4 . . . 7 19 2 . 3 2 5 4 4 4 3 Ballistic Cannon 1 | . . . . . . . 1 . . . . . . . . Launcher 12 | . . . . . . . . . 3 2 2 . 2 . 3 Special Weapon . | . . . . . . . . . . . . . . . . Impact Weapon 17 | . . . . . . 3 1 . 3 2 5 1 1 1 . Slashing Weapon 1 | . . . . . . . . . 1 . . . . . . Piercing Weapon 7 | . . . . . . 1 . . 3 . . . . . 3 Special Melee Weapon 1 | . . . . . . . . . . . . . . 1 . Unidentified Prototypes 16 | . 1 . . . 2 8 . . 1 . . 1 2 1 . Corrupted Parts 9 | . . . . . . 1 . . 1 . . . 1 3 3 System Corruption 56 | . . . . . . 7 . . 5 . . . 7 8 29 Parts Lost 30 | . . . . . 2 7 . . . 2 1 2 1 . 15 Power 2 | . . . . . . . . . . . . . . . 2 Propulsion 11 | . . . . . 1 5 . . . 1 1 . . . 3 Utility 6 | . . . . . 1 . . . . 1 . 1 . . 3 Weapon 11 | . . . . . . 2 . . . . . 1 1 . 7 Highest Loss Streak 9 | . . . . . 2 3 . . . 2 1 1 1 . 9 To Critical Strikes 1 | . . . . . . . . . . . . . . . 1 Average Slot Usage (%) 91 | . 99 100 100 100 98 94 92 92 91 85 89 92 83 79 73 Engine 7 | . 14 14 14 14 9 7 7 7 6 7 6 6 1 . . Treads 14 | . 27 28 28 28 25 12 7 7 7 7 2 16 16 13 11 Wheel 7 | . . . . . . 9 15 15 14 8 21 9 . . . Device 7 | . 10 14 14 14 8 6 5 7 7 6 5 1 6 10 3 Storage 8 | . 14 14 14 14 9 7 7 7 7 7 6 6 9 6 6 Processor 14 | . 3 . . . 17 22 23 23 23 23 12 12 13 13 16 Hackware 1 | . . . . . . . . . . . 4 6 . . . Protection 3 | . . . . . . 4 1 . . . 7 11 9 7 11 Energy Gun 1 | . . . . . . 8 . . . . . . . 5 1 Energy Cannon 2 | . 17 . . . . . . . . . . . 9 . . Ballistic Gun 14 | . 10 28 28 28 27 13 19 15 . 17 17 19 7 6 12 Impact Weapon 2 | . . . . . . . 3 7 6 3 2 . 1 6 . Piercing Weapon 1 | . . . . . . . . . 14 . . . . . 1 Naked Turns . | . . . . . . . . . . . . . . . . Heaviest Build 203 | 13 32 32 52 52 58 172 168 158 162 162 169 172 203 200 192 Greatest Support 160 | 40 40 40 40 40 60 76 28 28 28 28 72 89 160 160 160 Greatest Overweight (x) 49 | . . . 1 1 1 14 5 5 5 13 13 3 2 2 49 Average Overweight (x) 2 | . . . . 1 . 2 5 5 5 11 2 1 1 1 1 Largest Inventory Capacity 30 | 8 15 15 20 20 20 30 30 30 30 30 30 30 30 30 30 Average Capacity 25 | 6 14 15 17 20 20 25 30 30 30 30 30 30 30 30 30 Most Carried 30 | 6 15 15 20 20 20 30 30 30 30 30 30 30 30 30 30 Average Carried 25 | 3 13 15 16 20 19 24 29 29 29 29 29 29 29 29 26 Final Capacity 30 | 8 15 15 20 20 20 30 30 30 30 30 30 30 30 30 30 Final Carried 30 | 6 15 15 20 20 20 28 30 30 30 30 30 30 30 30 18 Class Distribution -------------------- 32% | Hauler-Mutant 20% | Mutant 9% | Scavenger-Mutant 8% | Scavenger-Gunner 7% | Hauler-Gunner 5% | Hauler-Tank 5% | Hauler-Skirmisher 4% | Skirmisher Dominant Class ---------------- Mutant | -10/Materials Mutant | -10/Mines Mutant | -10/Exiles Mutant | -9/Mines Scavenger-Gunner | -8/Materials Skirmisher | -7/Factory Hauler-Mutant | -7/Lower Caves Hauler-Mutant | -7/Lower Caves Hauler-Mutant | -7/Zion Hauler-Mutant | -6/Proximity Caves Hauler-Mutant | -6/Factory Commander-Tank | -6/Extension Hauler-Mutant | -6/Cetus Scavenger-Mutant | -6/Archives Scavenger-Mutant | -6/Hub_04(d) Resources | -11 -10 -10 -10 -9 -8 -7 -7 -7 -7 -6 -6 -6 -6 -6 -6 ----------- Run | Jun Mat Min Exi Min Mat Fac Low Low Zio Pro Fac Ext Cet Arc Hub Matter Collected 7224 | 211 611 . . 64 660 2108 192 30 169 214 1186 677 415 181 506 Remotely . | . . . . . . . . . . . . . . . . Salvage Created 10602 | . 746 . . 30 1331 3119 328 . . 252 1332 423 946 718 1377 Parts 563 | . 52 . . . 70 149 2 . . 10 76 17 54 49 84 Haulers Intercepted 10 | . 2 . . . 5 3 . . . . . . . . . Recyclers Shooed 17 | . 1 . . . 1 5 1 . . . 7 2 . . . Parts Field Recycled . | . . . . . . . . . . . . . . . . Retrieved Matter . | . . . . . . . . . . . . . . . . Parts Self-Destructed 9 | . . . . . . . . . 3 6 . . . . . Prevented . | . . . . . . . . . . . . . . . . Kills | -11 -10 -10 -10 -9 -8 -7 -7 -7 -7 -6 -6 -6 -6 -6 -6 ------- Run | Jun Mat Min Exi Min Mat Fac Low Low Zio Pro Fac Ext Cet Arc Hub Combat Hostiles Destroyed 147 | . 14 . . 2 11 35 . . . 9 22 6 20 4 24 Guns 84 | . . . . 2 11 33 . . . 2 17 5 1 . 13 Cannons 16 | . 14 . . . . . . . . . . 1 1 . . AOE 35 | . . . . . . . . . . 7 5 . 12 . 11 Classes Destroyed 18 | . 7 . . 1 2 7 . . . . . . 1 . . Worker 10 | . . . . . 2 2 . . . . 2 . . . 4 Builder 5 | . . . . . . 1 . . . . 2 1 . . 1 Tunneler 3 | . 1 . . . 1 . . . . . . 1 . . . Hauler 10 | . 2 . . . 5 3 . . . . . . . . . Recycler 21 | . 3 . . . 5 10 . . . . 3 . . . . Mechanic 1 | . . . . . 1 . . . . . . . . . . Operator 16 | . 2 . . . . 2 . . . . 1 1 . 9 1 Watcher 11 | . 3 . . . 2 2 . . . . 1 . 2 . 1 Swarmer 27 | . 9 . . . 3 . . . . 3 6 . 6 . . Grunt 66 | . 5 . . . 8 19 . . . 6 6 2 5 . 15 Brawler 2 | . . . . . . . . . . . . . 1 . 1 Duelist 4 | . . . . . . 2 . . . . 1 . . . 1 Protector 3 | . . . . . . 2 . . . . . . . . 1 Sentry 12 | . . . . . . 1 . . . . 3 3 . 4 1 Specialist 4 | . . . . . . 4 . . . . . . . . . Hunter 5 | . . . . . . 2 . . . . 2 1 . . . Programmer 11 | . . . . . . 5 . . . . 4 . . . 2 Cetus Guard 8 | . . . . . . . . . . . . . 8 . . Lightning 3 | . . . . . . . . . . . . . . . 3 Packrat 3 | . . . . . . . 3 . . . . . . . . Assembled 2 | . . . . 2 . . . . . . . . . . . Butcher 1 | . . . . . . . . . . . . 1 . . . Best Kill Streak 12 | . 5 . . 1 7 12 . . . 3 4 2 6 2 7 Combat Bots Only 10 | . 5 . . 1 3 10 . . . 3 4 2 6 2 5 Max Kills in Single Turn 7 | . 1 . . 1 2 2 1 . . 3 3 1 3 1 7 Gunslinging 1 | . . . . . 1 1 . . . . . . . . . Exploded 4 | . . . . . . . . . . 3 3 . 3 . 4 Melee . | . . . . . . . . . . . . . . . . Uniques/NPCs Destroyed 1 | . . . . . . . . . . . . . 1 . . Revision 17 (-6/Cetus) Combat | -11 -10 -10 -10 -9 -8 -7 -7 -7 -7 -6 -6 -6 -6 -6 -6 -------- Run | Jun Mat Min Exi Min Mat Fac Low Low Zio Pro Fac Ext Cet Arc Hub Damage Taken 11443 | . 283 . . 168 493 2149 . . . 555 794 306 1667 217 4811 Core 1355 | . 26 . . 14 39 270 . . . 145 141 26 19 24 651 Absorbed by Shields 305 | . . . . . 77 . . . . . 139 89 . . . Reduced by Siege Mode 350 | . . . . . . . . . . . . . 78 7 265 Regen/Repaired (Parts) 1344 | . 113 . . . . . . . 577 . . 53 284 21 296 Core Remaining (%) 79 | 100 . . . 84 92 . . . . 40 . . . . . Volleys Fired 513 | . 43 . . 9 51 155 8 . . 11 74 33 27 46 56 Largest 3 | . 2 . . 2 3 3 3 . . 3 3 3 3 2 3 Hottest 180 | . 120 . . 46 75 180 65 . . 65 65 120 120 162 151 Shots Fired 1252 | . 86 . . 18 153 408 24 . . 23 206 95 54 92 93 Gun 1112 | . 14 . . 18 153 408 24 . . 18 204 93 20 74 86 Cannon 125 | . 72 . . . . . . . . . . 2 29 18 4 Launcher 15 | . . . . . . . . . . 5 2 . 5 . 3 Special . | . . . . . . . . . . . . . . . . Kinetic 917 | . 14 . . 18 153 306 24 . . 18 204 93 20 1 66 Thermal 165 | . 72 . . . . . . . . . . . . 73 20 Explosive 15 | . . . . . . . . . . 5 2 . 5 . 3 Electromagnetic 155 | . . . . . . 102 . . . . . 2 29 18 4 Robot Hit Streak 26 | . 14 . . 7 17 22 5 . . 5 26 8 17 14 13 Robot Miss Streak 6 | . 5 . . 2 3 6 2 . . 4 3 3 5 4 2 Penetration Max 1 | . . . . . . . . . . . . . . . 1 Secondary Targets 21 | . . . . . 1 13 . . . . 4 1 . . 2 Max Gunslinging Chain 2 | . . . . . 1 2 . . . . 1 1 . . 1 Shots Hit Robots 818 | . 46 . . 11 102 277 13 . . 8 127 64 43 52 75 Core Hits 542 | 1 28 . . 4 47 124 7 . . 32 80 29 63 25 102 Critical Kills 11 | . . . . . 1 . . . . . . . 1 5 4 Critical Parts Destroyed 21 | . . . . 1 . 2 . . . . 1 1 . 7 9 Critical Strikes 36 | . . . . 1 1 4 . . . . 1 2 2 12 13 Destroy 33 | . . . . 1 1 2 . . . . 1 2 1 12 13 Corrupt 3 | . . . . . . 2 . . . . . . 1 . . Melee Attacks 69 | . . . . . . 9 3 10 . 1 17 5 . . 24 Impact 46 | . . . . . . 9 3 10 . 1 17 5 . . 1 Slashing . | . . . . . . . . . . . . . . . . Piercing 23 | . . . . . . . . . . . . . . . 23 Sneak Attacks 1 | . . . . . . . . . . . . 1 . . . Combat Hostiles . | . . . . . . . . . . . . . . . . Follow-up Attacks . | . . . . . . . . . . . . . . . . Damage Inflicted 22246 | 2 881 . . 170 1657 5579 250 . . 1069 3128 1497 2688 1407 3918 Guns 14562 | . 141 . . 170 1572 5435 250 . . 129 2387 1337 295 931 1915 Cannons 2293 | . 716 . . . . . . . . . . 40 962 476 99 Explosions 4959 | . . . . . 68 98 . . . 940 741 . 1431 . 1681 Melee 321 | . . . . . . . . . . . . 98 . . 223 Ramming 111 | 2 24 . . . 17 46 . . . . . 22 . . . Kinetic 11669 | . 141 . . 170 1572 3841 250 . . 129 2387 1337 295 . 1547 Thermal 2180 | . 716 . . . 68 97 . . . . . . . 931 368 Explosive 4793 | . . . . . . . . . . 940 741 . 1431 . 1681 Electromagnetic 3172 | . . . . . . 1595 . . . . . 40 962 476 99 Impact 98 | . . . . . . . . . . . . 98 . . . Slashing . | . . . . . . . . . . . . . . . . Piercing 223 | . . . . . . . . . . . . . . . 223 Highest Corruption 46 | . . . . . . 9 4 4 5 . 3 3 10 10 46 Average Corruption 5 | . . . . . . 7 4 4 4 . 2 3 8 5 12 Corruption Purged 23 | . . . . . . 5 . . . . . . . 18 . Corruption Blocked . | . . . . . . . . . . . . . . . . Effects 177 | . . . . . . 60 10 15 2 . 9 20 19 12 30 Message Errors 38 | . . . . . . 16 1 3 1 . . 3 7 3 4 Matter Fused 38 | . . . . . . 10 2 6 . . 1 5 2 1 11 Heat Flow Errors 24 | . . . . . . 7 4 1 . . . 3 4 1 4 Energy Discharges 23 | . . . . . . 6 . 1 . . 3 4 3 5 1 Parts Rejected 2 | . . . . . . 1 . . . . . . 1 . . Data Loss (minor) 20 | . . . . . . 9 1 3 1 . 1 2 1 . 2 Data Loss (major) 11 | . . . . . . 5 1 1 . . 1 1 . 1 1 Misfires 6 | . . . . . . 2 . . . . 1 . 1 . 2 Alerts 6 | . . . . . . 1 1 . . . 2 2 . . . Weapon Failures 9 | . . . . . . 3 . . . . . . . 1 5 Overload Shots 1 | . . . . . . . . . . . . 1 . . . Overflow Damage 233 | . . . . . 132 . . . . . 6 58 33 . 4 Projectiles 33 | . . . . . . . . . . . . . 33 . . Explosions 142 | . . . . . 132 . . . . . 6 . . . 4 Melee 58 | . . . . . . . . . . . . 58 . . . Knockbacks 2 | . . . . . . 2 . . . . . . . . . Impact 2 | . . . . . . 2 . . . . . . . . . Kinetic . | . . . . . . . . . . . . . . . . Secondary . | . . . . . . . . . . . . . . . . Self-Inflicted Damage 922 | . . . . . 362 43 . . . 43 83 . . . 391 Shots 25 | . . . . . 4 1 . . . 2 4 . . . 14 Rammed 21 | 1 8 . . . 2 8 . . . . . 2 . . . Targets Rammed 23 | 1 8 . . . 2 9 . . . . . 3 . . . Kicked . | . . . . . . . . . . . . . . . . Crushed 2 | . . . . . . 1 . . . . . 1 . . . Highest Temperature 625 | . 216 . . . 105 625 256 209 . 60 46 252 220 153 235 Average Temperature 60 | . 57 . . . 30 88 76 111 . 35 13 34 80 38 68 Received Heat Transfer 2034 | . 48 . . . 89 714 . . . 145 66 60 162 45 705 Effects 14 | . . . . . . 14 . . . . . . . . . Shutdowns 1 | . . . . . . 1 . . . . . . . . . Energy Bleed 1 | . . . . . . 1 . . . . . . . . . Matter Decay 2 | . . . . . . 2 . . . . . . . . . Damage (minor) 1 | . . . . . . 1 . . . . . . . . . Damage (major) 9 | . . . . . . 9 . . . . . . . . . Siege Activations 7 | . . . . . . . . . . . . . 1 2 4 Total Turns 153 | . . . . . . . . . . . . . 40 17 96 Longest Duration 65 | . . . . . . . . . . . . . 40 11 65 Robots Corrupted 12 | . . . . . . 2 . . . . . . 6 4 . Combat Hostiles 12 | . . . . . . 2 . . . . . . 6 4 . Parts Fried 27 | . . . . . . 11 . . . . . 4 8 4 . Impact Corruptions 2 | . . . . . . . . . . . . 2 . . . Robots Melted . | . . . . . . . . . . . . . . . . Combat Hostiles . | . . . . . . . . . . . . . . . . Parts Melted 9 | . 3 . . . . 2 . . . . . 1 . 3 . Heat Transferred 3369 | . 1480 . . . 50 100 . . . . . . . 1443 296 Parts Sabotaged . | . . . . . . . . . . . . . . . . Parts Stolen . | . . . . . . . . . . . . . . . . Parts Stripped . | . . . . . . . . . . . . . . . . Power Chain Reactions 2 | . . . . . . 2 . . . . . . . . . Missiles Intercepted . | . . . . . . . . . . . . . . . . Alert | -11 -10 -10 -10 -9 -8 -7 -7 -7 -7 -6 -6 -6 -6 -6 -6 ------- Run | Jun Mat Min Exi Min Mat Fac Low Low Zio Pro Fac Ext Cet Arc Hub Peak Influence 637 | . 236 . . 6 389 626 . . . . 342 305 346 368 637 Initial 138 | . . . . . 1 34 . . . . 44 53 35 138 . Average 139 | . 50 . . 4 161 269 . . . . 100 82 228 115 274 Maximum Alert Level 2 | . 1 . . . 1 2 . . . . 1 1 1 1 2 Low Security (%) 73 | 100 98 100 . 100 62 37 . . . . 91 91 36 77 48 Level 1 21 | . 1 . . . 37 37 . . . . 8 8 63 22 34 Level 2 5 | . . . . . . 24 . . . . . . . . 17 Level 3 . | . . . . . . . . . . . . . . . . Level 4 . | . . . . . . . . . . . . . . . . Level 5 . | . . . . . . . . . . . . . . . . High Security . | . . . . . . . . . . . . . . . . Max Security . | . . . . . . . . . . . . . . . . Squads Dispatched 34 | . 3 . . . 2 9 . . . . 10 1 . . 9 Investigation 12 | . 1 . . . 1 2 . . . . 6 . . . 2 Extermination 8 | . . . . . . 3 . . . . 3 . . . 2 Reinforcement 11 | . 2 . . . 1 4 . . . . 1 1 . . 2 Assault 2 | . . . . . . . . . . . . . . . 2 Garrison 1 | . . . . . . . . . . . . . . . 1 Intercept . | . . . . . . . . . . . . . . . . Searches Triggered . | . . . . . . . . . . . . . . . . Construction Impeded 1 | . . . . . . 1 . . . . . . . . . Haulers Reinforced . | . . . . . . . . . . . . . . . . Active Scanning Responses . | . . . . . . . . . . . . . . . . Cargo Convoy Interrupts 1 | . . . . . . 1 . . . . . . . . . Stealth | -11 -10 -10 -10 -9 -8 -7 -7 -7 -7 -6 -6 -6 -6 -6 -6 --------- Run | Jun Mat Min Exi Min Mat Fac Low Low Zio Pro Fac Ext Cet Arc Hub Distress Signals 10 | . 2 . . 1 . 3 . . . . . 2 1 . 1 Communications Jammed . | . . . . . . . . . . . . . . . . Distress Signals . | . . . . . . . . . . . . . . . . Times Spotted 248 | . 27 . . 4 17 63 . . . 9 26 19 25 22 36 Peak Tracking Total 13 | . 4 . . 1 4 13 . . . 3 5 4 6 1 9 Tactical Retreats 9 | . 1 . . 1 . 4 . . . . 1 1 1 . . Traps | -11 -10 -10 -10 -9 -8 -7 -7 -7 -7 -6 -6 -6 -6 -6 -6 ------- Run | Jun Mat Min Exi Min Mat Fac Low Low Zio Pro Fac Ext Cet Arc Hub Traps Triggered 6 | . 1 . . . 1 . . . . . . 3 . . 1 Indirectly . | . . . . . . . . . . . . . . . . Trap Hack Attempts . | . . . . . . . . . . . . . . . . Triggered . | . . . . . . . . . . . . . . . . Disarmed . | . . . . . . . . . . . . . . . . Reprogrammed . | . . . . . . . . . . . . . . . . Reused . | . . . . . . . . . . . . . . . . Traps Extracted . | . . . . . . . . . . . . . . . . Installed . | . . . . . . . . . . . . . . . . Triggered . | . . . . . . . . . . . . . . . . Machines | -11 -10 -10 -10 -9 -8 -7 -7 -7 -7 -6 -6 -6 -6 -6 -6 ---------- Run | Jun Mat Min Exi Min Mat Fac Low Low Zio Pro Fac Ext Cet Arc Hub Machines Disabled 26 | . . . . . 5 5 1 . . . 1 2 . 4 8 Max in Single Turn 4 | . . . . . 4 2 1 . . . 1 1 . 1 2 Garrison Access 1 | . . . . . . . . . . . . . . . 1 Network Hub 2 | . . . . . . . . . . . . . . . 2 Machines Repaired 1 | . . . . . . . . . . . . . . . 1 Machines Sabotaged . | . . . . . . . . . . . . . . . . Overloaded Fab Kills . | . . . . . . . . . . . . . . . . Hacking | -11 -10 -10 -10 -9 -8 -7 -7 -7 -7 -6 -6 -6 -6 -6 -6 --------- Run | Jun Mat Min Exi Min Mat Fac Low Low Zio Pro Fac Ext Cet Arc Hub Machines Accessed 42 | . 8 . 1 2 1 5 . . 1 . 13 5 . . 6 Terminals 27 | . 5 . . 2 . 3 . . . . 7 5 . . 5 Fabricators 6 | . . . . . . 1 . . . . 5 . . . . Repair Stations 1 | . 1 . . . . . . . . . . . . . . Recycling Units 3 | . 2 . . . 1 . . . . . . . . . . Scanalyzers 1 | . . . . . . . . . . . 1 . . . . Garrison Access 2 | . . . . . . 1 . . . . . . . . 1 Total Hacks 126 | . 26 . 1 6 1 10 . . 7 . 43 11 . . 21 Successful 65 | . 16 . 1 3 1 2 . . 7 . 29 3 . . 3 Failed 60 | . 9 . . 3 . 8 . . . . 14 8 . . 18 Catastrophic 8 | . . . . . . 1 . . . . 2 2 . . 3 Database Lockouts 1 | . 1 . . . . . . . . . . . . . . Manual 61 | . 10 . . 6 1 1 . . . . 26 6 . . 11 Terminals 80 | . 14 . . 6 . 7 . . . . 27 11 . . 15 Fabricators 14 | . . . . . . 1 . . . . 13 . . . . Repair Stations 7 | . 7 . . . . . . . . . . . . . . Recycling Units 6 | . 5 . . . 1 . . . . . . . . . . Scanalyzers 3 | . . . . . . . . . . . 3 . . . . Garrison Access 8 | . . . . . . 2 . . . . . . . . 6 Terminal Hacks 33 | . 6 . 1 3 . 1 . . 7 . 10 3 . . 2 Record 1 | . . . 1 . . . . . . . . . . . . Part Schematic 9 | . . . . . . . . . 7 . 2 . . . . Robot Analysis 2 | . 1 . . 1 . . . . . . . . . . . Prototype ID Bank 2 | . . . . . . . . . . . 2 . . . . Open Door 1 | . . . . . . . . . . . . 1 . . . Branch Access Points 1 | . . . . . . 1 . . . . . . . . . Alert Level 1 | . 1 . . . . . . . . . . . . . . Unreport Threat 5 | . 1 . . . . . . . . . 2 2 . . . Locate Traps 4 | . 2 . . . . . . . . . 1 . . . 1 Maintenance Status 1 | . . . . . . . . . . . 1 . . . . Patrol Status 2 | . 1 . . . . . . . . . 1 . . . . Hauler Manifests 1 | . . . . . . . . . . . 1 . . . . Zone Layout 3 | . . . . 2 . . . . . . . . . . 1 Fabricator Hacks 8 | . . . . . . 1 . . . . 7 . . . . Network Status 2 | . . . . . . 1 . . . . 1 . . . . Load Schematic 5 | . . . . . . . . . . . 5 . . . . Build 1 | . . . . . . . . . . . 1 . . . . Repair Station Hacks 6 | . 6 . . . . . . . . . . . . . . Scan Component 3 | . 3 . . . . . . . . . . . . . . Repair 3 | . 3 . . . . . . . . . . . . . . Recycling Unit Hacks 1 | . 1 . . . . . . . . . . . . . . Retrieve Components 1 | . 1 . . . . . . . . . . . . . . Scanalyzer 1 | . . . . . . . . . . . 1 . . . . Insert Component 1 | . . . . . . . . . . . 1 . . . . Garrison Access Hacks . | . . . . . . . . . . . . . . . . Unauthorized Hacks 16 | . 3 . . . 1 . . . . . 11 . . . 1 Terminals 9 | . 2 . . . . . . . . . 6 . . . 1 Track 2 | . . . . . . . . . . . 2 . . . . Botnet 3 | . 1 . . . . . . . . . 2 . . . . Disrupt 1 | . . . . . . . . . . . 1 . . . . Operators 2 | . 1 . . . . . . . . . 1 . . . . Sabotage 1 | . . . . . . . . . . . . . . . 1 Fabricators 5 | . . . . . . . . . . . 5 . . . . Liberate 1 | . . . . . . . . . . . 1 . . . . Recompile 4 | . . . . . . . . . . . 4 . . . . Repair Stations . | . . . . . . . . . . . . . . . . Recycling Units 2 | . 1 . . . 1 . . . . . . . . . . Tunnel 2 | . 1 . . . 1 . . . . . . . . . . Scanalyzers . | . . . . . . . . . . . . . . . . Garrison Access . | . . . . . . . . . . . . . . . . Data Cores Recovered 1 | . . . . . . . . . . . 1 . . . . Used 1 | . . . . . . . . . . . 1 . . . . Hacking Detections 33 | . 7 . . 2 . 4 . . . . 9 5 . . 6 Full Trace Events 5 | . 1 . . . . 2 . . . . 2 . . . . Feedback Events 1 | . . . . . . . . . . . 1 . . . . Corruption 1 | . . . . . . . . . . . 1 . . . . Feedback Blocked . | . . . . . . . . . . . . . . . . Robot Schematics Acquired . | . . . . . . . . . . . . . . . . Robots Built . | . . . . . . . . . . . . . . . . Authchips . | . . . . . . . . . . . . . . . . Time . | . . . . . . . . . . . . . . . . Total Robot Build Rating . | . . . . . . . . . . . . . . . . Part Schematics Acquired 9 | . . . . . . . . . 7 . 2 . . . . Parts Built 2 | . . . . . . . . . . . 2 . . . . Authchips 1 | . . . . . . . . . . . 1 . . . . Time 31 | . . . . . . . . . . . 31 . . . . Total Part Build Rating 10 | . . . . . . . . . . . 10 . . . . Parts Repaired 3 | . 3 . . . . . . . . . . . . . . Time 88 | . 88 . . . . . . . . . . . . . . Parts Recycled . | . . . . . . . . . . . . . . . . Recycled Matter . | . . . . . . . . . . . . . . . . Retrieved Matter . | . . . . . . . . . . . . . . . . Retrieved Components . | . . . . . . . . . . . . . . . . Parts Scanalyzed 1 | . . . . . . . . . . . 1 . . . . Part Schematics Acquired . | . . . . . . . . . . . . . . . . Parts Damaged . | . . . . . . . . . . . . . . . . Bothacking | -11 -10 -10 -10 -9 -8 -7 -7 -7 -7 -6 -6 -6 -6 -6 -6 ------------ Run | Jun Mat Min Exi Min Mat Fac Low Low Zio Pro Fac Ext Cet Arc Hub Used RIF Installer . | . . . . . . . . . . . . . . . . Robots Hacked . | . . . . . . . . . . . . . . . . Non-combat . | . . . . . . . . . . . . . . . . Combat . | . . . . . . . . . . . . . . . . Robot Hacks Applied . | . . . . . . . . . . . . . . . . Relay Couplers Released . | . . . . . . . . . . . . . . . . Fabnet Peak Effective % . | . . . . . . . . . . . . . . . . Robots Rewired 10 | . . . . . . . . . . . . 10 . . . Allies Hacked . | . . . . . . . . . . . . . . . . Hacks Repelled . | . . . . . . . . . . . . . . . . Allies | -11 -10 -10 -10 -9 -8 -7 -7 -7 -7 -6 -6 -6 -6 -6 -6 -------- Run | Jun Mat Min Exi Min Mat Fac Low Low Zio Pro Fac Ext Cet Arc Hub Total Allies 15 | . . . . . . . . . . . 3 12 . . . Largest Group 8 | . . . . . . . . . . . 3 8 . . . Highest-Rated Group 380 | . . . . . . . . . . . 60 380 . . . Highest-Rated Ally 159 | . . . . . . . . . . . 20 159 . . . Total Orders 1 | . . . . . . . . . . . . 1 . . . STAY 1 | . . . . . . . . . . . . 1 . . . Ally Attacks 121 | . . . . . . . . . . . 1 120 . . . Total Damage 2298 | . . . . . . . . . . . . 2298 . . . Kills 15 | . . . . . . . . . . . . 15 . . . Allies Corrupted . | . . . . . . . . . . . . . . . . Allies Melted 1 | . . . . . . . . . . . . 1 . . . Intel | -11 -10 -10 -10 -9 -8 -7 -7 -7 -7 -6 -6 -6 -6 -6 -6 ------- Run | Jun Mat Min Exi Min Mat Fac Low Low Zio Pro Fac Ext Cet Arc Hub Robot Analysis Total 2 | . 1 . . 1 . . . . . . . . . . . Derelict Logs Recovered 10 | . . . . 1 . . 3 3 1 2 . . . . . Drone Launches . | . . . . . . . . . . . . . . . . Drone Recoveries . | . . . . . . . . . . . . . . . . Exploration | -11 -10 -10 -10 -9 -8 -7 -7 -7 -7 -6 -6 -6 -6 -6 -6 ------------- Run | Jun Mat Min Exi Min Mat Fac Low Low Zio Pro Fac Ext Cet Arc Hub Turns Passed 17960 | 87 2359 37 500 680 1484 2453 616 702 1551 962 2069 1335 688 1638 799 Spaces Moved 7617 | 48 1234 24 250 221 488 1042 338 396 891 345 994 545 206 390 205 Core 6 | 5 . . . . . . . . . . . . . . 1 Treads 3881 | 43 1234 24 250 221 488 480 . . . . 3 338 206 390 204 Legs . | . . . . . . . . . . . . . . . . Wheels 3730 | . . . . . . 562 338 396 891 345 991 207 . . . Hover . | . . . . . . . . . . . . . . . . Flight . | . . . . . . . . . . . . . . . . Fastest Speed 50 | 50 160 160 160 240 160 120 170 170 170 170 127 122 240 240 240 Average Speed 181 | 148 160 160 198 240 172 168 170 170 170 257 138 201 252 240 251 Slowest Speed 2500 | 160 160 160 240 240 240 300 170 170 170 285 310 400 320 320 2500 Overloaded Moves . | . . . . . . . . . . . . . . . . Propulsion Burnouts . | . . . . . . . . . . . . . . . . Robots Hopped . | . . . . . . . . . . . . . . . . Cave-ins Triggered . | . . . . . . . . . . . . . . . . Exploration Rate (%) 51 | 4 99 6 60 58 32 30 58 56 84 55 28 61 60 99 28 Regions Visited 15 Branch Regions 11 Pre-discovered Areas 5 | . 1 . 1 . 1 . 1 . 1 . . . . . . Known Exits Taken 6 | . . . . . . 1 1 1 1 1 1 . . . . Unknown Exits Taken 9 | 1 1 1 1 1 1 . . . . . . 1 1 1 . Scrap Searched 7 | . . . . . . . 2 2 2 1 . . . . . Spaces Dug 72 | . . . . . . 9 . 10 . 31 15 1 . . 6 Terrain Destroyed 419 | . . . . . 85 17 . 10 . 119 41 1 91 . 55 Melee 42 | . . . . . . 9 . 10 . 1 15 1 . . 6 Projectile 13 | . . . . . . . . . . 3 . . . . 10 AOE 364 | . . . . . 85 8 . . . 115 26 . 91 . 39 Terrain Rammed . | . . . . . . . . . . . . . . . . Walls Destroyed . | . . . . . . . . . . . . . . . . Machines Disabled . | . . . . . . . . . . . . . . . . Actions | -11 -10 -10 -10 -9 -8 -7 -7 -7 -7 -6 -6 -6 -6 -6 -6 --------- Run | Jun Mat Min Exi Min Mat Fac Low Low Zio Pro Fac Ext Cet Arc Hub Total 10802 | 60 1536 23 256 354 1023 1496 362 409 923 397 1561 726 326 999 351 Wait 1920 | . 182 . . 123 414 137 2 . . 32 396 19 43 530 42 Move 7602 | 47 1233 23 249 220 487 1041 337 395 890 344 993 544 205 389 205 Hop . | . . . . . . . . . . . . . . . . Pick Up 137 | 6 24 . 5 1 21 29 4 2 4 1 18 4 11 6 1 Fast Attach 88 | 6 13 . . . 10 21 . . 6 . 10 8 5 9 . Attach 48 | . 1 . . . 5 13 . . . 1 9 2 4 1 12 Detach 14 | . 1 . . . . 7 . . . . 2 1 1 . 2 Swap 134 | . 5 . 1 . 7 42 6 . 13 7 18 7 14 6 8 Drop 167 | . 26 . 1 1 26 33 2 2 10 . 24 13 16 12 1 Fire 513 | . 43 . . 9 51 155 8 . . 11 74 33 27 46 56 Melee 69 | . . . . . . 9 3 10 . 1 17 5 . . 24 Ram . | . . . . . . . . . . . . . . . . Kick . | . . . . . . . . . . . . . . . . Crush 23 | 1 8 . . . 2 9 . . . . . 3 . . . Escape Stasis 27 | . . . . . . . . . . . . 27 . . . Rewire 60 | . . . . . . . . . . . . 60 . . . Trap . | . . . . . . . . . . . . . . . . Miscellaneous . | . . . . . . . . . . . . . . . . Route ------- -11/Junkyard -10/Materials (discovered 5 exits: [*Mat x3] / [*Min x2]) -10/Mines -10/Exiles -9/Mines -8/Materials -7/Factory (discovered 3 exits: Sto / *Low x2) -7/Lower Caves -7/Lower Caves -7/Zion -6/Proximity Caves -6/Factory (discovered 2 exits: Fac / *Ext) -6/Extension (discovered 2 exits: *Fac / [*Cet]) -6/Cetus (discovered 2 exits: *Fac / [*Arc]) -6/Archives (discovered 3 exits: *Fac / *Hub x2) -6/Hub_04(d) History --------- Turn | Location | Event 2 | -11/Junkyard | Met Revision 17 5 | -11/Junkyard | Discovered new exit (range 15) 88 | -11/Junkyard | Entered Materials 215 | -10/Materials | Discovered new exit (range 16) 305 | -10/Materials | Build established: Mutant 580 | -10/Materials | Discovered new exit (range 5) 669 | -10/Materials | Discovered new exit (range 6) 779 | -10/Materials | Repaired Broken Heat Sink 998 | -10/Materials | Discovered new exit (range 12) 1098 | -10/Materials | Central database locked down 1353 | -10/Materials | Discovered new exit (range 13) 1728 | -10/Materials | Repaired Lgt. Treads 1755 | -10/Materials | Repaired Lgt. Treads 2447 | -10/Materials | Entered Mines 2478 | -10/Mines | Deemed a non-threat by the Exiles lab entrance 2478 | -10/Mines | Discovered new exit (range 5) 2484 | -10/Mines | Entered Exiles 2523 | -10/Exiles | Met 8R-AWN 2550 | -10/Exiles | Met EX-HEX 2614 | -10/Exiles | Met EX-DEC 2620 | -10/Exiles | Learned location of Zion (-7) 2953 | -10/Exiles | Discovered new exit (range 15) 2984 | -10/Exiles | Entered Mines 2985 | -9/Mines | Assembled infested the area 3257 | -9/Mines | A weapon hastily lodged in a ceiling crevice suddenly fell to the ground 3293 | -9/Mines | Found a damaged Exp. Sensor Array with a note attached 3298 | -9/Mines | Found Prototype Device 3623 | -9/Mines | Learned Materials stockpile data 3640 | -9/Mines | Discovered new exit (range 7) 3664 | -9/Mines | Entered Materials 3664 | -8/Materials | Evolved 4 slots: Propulsion x1, Utility x2, Weapon x1 4237 | -8/Materials | Build established: Scavenger-Gunner 5014 | -8/Materials | Discovered new exit (range 10) 5148 | -8/Materials | Entered Factory 5148 | -7/Factory | Evolved 2 slots: Utility x2 5149 | -7/Factory | Identified Exp. Sensor Array 5455 | -7/Factory | Build established: Skirmisher 6043 | -7/Factory | Cargo convoy interrupted 6156 | -7/Factory | Destroyed 10 combat bots 6632 | -7/Factory | Build established: Hauler-Gunner 6877 | -7/Factory | Identified exit to Storage 6877 | -7/Factory | Identified exit to Lower Caves 7071 | -7/Factory | Lost 3 parts (2n1w) 7316 | -7/Factory | Build established: Hauler-Mutant 7601 | -7/Factory | Entered Lower Caves 7613 | -7/Lower Caves | Learned Factory terminal intel 7965 | -7/Lower Caves | Learned 4 Factory zone layouts 8210 | -7/Lower Caves | Discovered new exit (range 5) 8215 | -7/Lower Caves | Identified exit to Lower Caves 8217 | -7/Lower Caves | Entered another Lower Caves area 8498 | -7/Lower Caves | Learned Factory non-interactive machine intel 8557 | -7/Lower Caves | Learned Factory emergency access door positions 8569 | -7/Lower Caves | Learned 12 Factory zone layouts 8579 | -7/Lower Caves | Spotted B-75 Beast 8724 | -7/Lower Caves | Encountered a Warlord checkpoint 8911 | -7/Lower Caves | Discovered new exit (range 5) 8918 | -7/Lower Caves | Identified exit to Zion 8919 | -7/Lower Caves | Entered Zion 8962 | -7/Zion | Given A8's code to call for help 8968 | -7/Zion | System corruption cleaned by Quarantine Array 9126 | -7/Zion | Discovered new exit (range 15) 9150 | -7/Zion | Identified exit to Proximity Caves 9240 | -7/Zion | System corruption cleaned by Quarantine Array 9510 | -7/Zion | Found CR-A16's Pointy Stick 9538 | -7/Zion | Learned Factory non-interactive machine intel 9586 | -7/Zion | Found Prototype Launcher 9586 | -7/Zion | Identified Rocket Array 9721 | -7/Zion | Visited the Megawrench Repair Shop 9721 | -7/Zion | Megawrench repaired 11 parts 10293 | -7/Zion | Learned location of Warlord (-5) 10470 | -7/Zion | Entered Proximity Caves 10803 | -6/Proximity Caves | Learned location of 1 exit from Factory 10905 | -6/Proximity Caves | Core integrity fell below 50% 10978 | -6/Proximity Caves | Learned Factory stockpile data 11398 | -6/Proximity Caves | Discovered new exit (range 13) 11429 | -6/Proximity Caves | Identified exit to Factory 11432 | -6/Proximity Caves | Entered Factory 11432 | -6/Factory | Evolved 2 slots: Propulsion x1, Utility x1 11433 | -6/Factory | Identified exit to Extension 11434 | -6/Factory | Identified exit to Factory 11437 | -6/Factory | Loaded intel: 201 non-interactive machine locations 11438 | -6/Factory | Loaded intel: 28 terminal locations 12630 | -6/Factory | Build established: Hauler-Tank 12796 | -6/Factory | Fabricated Weapon Mount? 13501 | -6/Factory | Entered Extension 13628 | -6/Extension | Rescued a captive Derelict 13907 | -6/Extension | Rescued A7 14242 | -6/Extension | Build established: Commander-Tank 14380 | -6/Extension | Spotted B-75 Beast 14405 | -6/Extension | Allies destroyed B-75 Beast 14441 | -6/Extension | Spotted B-75 Beast 14460 | -6/Extension | Allies destroyed B-75 Beast 14466 | -6/Extension | Extracted ID and sensor layout for unrecognized location from A7's data core 14471 | -6/Extension | Found Prototype Protection 14471 | -6/Extension | Identified Med. Regenerative Plating 14751 | -6/Extension | Discovered new exit (range 22) 14754 | -6/Extension | Discovered exit to Factory (range 21) 14836 | -6/Extension | Entered Cetus 14857 | -6/Cetus | Build established: Scavenger-Gunner 14881 | -6/Cetus | Spotted Cetus Guard 14881 | -6/Cetus | Spotted Cetus Guard 14881 | -6/Cetus | Spotted Cetus Guard 14881 | -6/Cetus | Spotted Cetus Guard 14890 | -6/Cetus | Destroyed Cetus Guard 14898 | -6/Cetus | Destroyed Cetus Guard 14906 | -6/Cetus | Destroyed Cetus Guard 14932 | -6/Cetus | Destroyed Cetus Guard 15011 | -6/Cetus | System corruption reached 10% 15116 | -6/Cetus | Discovered new exit (range 22) 15168 | -6/Cetus | Spotted Cetus Guard 15168 | -6/Cetus | Spotted Cetus Guard 15168 | -6/Cetus | Spotted Cetus Guard 15168 | -6/Cetus | Spotted Cetus Guard 15233 | -6/Cetus | Destroyed Cetus Guard 15238 | -6/Cetus | Destroyed Cetus Guard 15249 | -6/Cetus | Destroyed Cetus Guard 15397 | -6/Cetus | Destroyed Cetus Guard 15399 | -6/Cetus | Discovered exit to Factory (range 22) 15432 | -6/Cetus | Met Revision 17 15440 | -6/Cetus | Destroyed Revision 17 15524 | -6/Cetus | Entered Archives 15539 | -6/Archives | Build established: Hauler-Mutant 15608 | -6/Archives | Discovered new exit (range 22) 15693 | -6/Archives | Discovered new exit (range 21) 15817 | -6/Archives | Discovered exit to Factory (range 22) 16611 | -6/Archives | Build established: Scavenger-Mutant 17162 | -6/Archives | Entered Hub_04(d) 17187 | -6/Hub_04(d) | Network Hub disabled 17187 | -6/Hub_04(d) | Network Hub disabled 17199 | -6/Hub_04(d) | Spotted B-75 Beast 17351 | -6/Hub_04(d) | Lost 3 parts (1p1n1w) 17782 | -6/Hub_04(d) | Spotted Lightning 17828 | -6/Hub_04(d) | Spotted Lightning 17828 | -6/Hub_04(d) | Spotted Lightning 17832 | -6/Hub_04(d) | Core integrity fell below 50% 17862 | -6/Hub_04(d) | First assault squad dispatched 17873 | -6/Hub_04(d) | Lost 3 parts (1n1u1w) 17876 | -6/Hub_04(d) | System corruption reached 30% 17878 | -6/Hub_04(d) | Destroyed Lightning 17890 | -6/Hub_04(d) | Destroyed Lightning 17896 | -6/Hub_04(d) | Destroyed Lightning 17915 | -6/Hub_04(d) | Core integrity fell below 20% 17948 | -6/Hub_04(d) | Lost 9 parts (1p1n2u5w) 17961 | -6/Hub_04(d) | Destroyed by G-67 Veteran with Plasma Rifle Last Messages --------------- 17952_ K-01 Serf collects debris. 17953_ U-05 Engineer lays Concrete. 17954_ K-01 Serf collects debris. 17955_ The unstable cave ceiling collapses. 17955_ Prototype Energy Cannon crushed. 17955_ U-05 Engineer lays Concrete. 17955_ K-01 Serf collects debris. 17956_ U-05 Engineer lays Concrete. 17956_ K-01 Serf cleans the Terminal. 17957_ K-01 Serf collects debris. 17957_ U-05 Engineer lays Concrete. 17959_ U-05 Engineer builds a Wall. 17959_ K-01 Serf collects debris. 17960_ C-30 ARC bursts open, deploying its payload. 17960_ G-67 Veteran unfolds itself. 17960_ G-50 Soldier unfolds itself. 17960_ B-48 Gladiator unfolds itself. 17960_ L-41 Fighter unfolds itself. 17960_ M-28 Smith unfolds itself. 17961_ K-01 Serf collects debris. Map ----- +----------------------------------------------------+ | ?????????????????????????????????????????????????? | | ?????????????????????????????????????????????????? | | ?????????????????????????????????????????????????? | | ?????????????????????????????????????????????????? | | ?????????????????????????????????????????????????? | | ?????????????????????????????????????????????????? | | ?????????????????????????????????????????????????? | | ?????????????????????????????????????????????????? | | ??????????????????#+?????????????????????????????? | | ??????????????????# ?????????????????????????????? | | ??????????????????# ????????????????????????????? | | ??????????????????# ????????????????????????????? | | ??????????????????# ?####???????????????????????? | | ?????????????????## ?# ???????????????????????? | | ?????????#+####### # ???????????????????????? | | ?????????? # ???????????????????????? | | ?????????? ???????????????????????? | | ??????# ??""" """" # ???????????????????????? | | ????" ; """ """" u# ???????????????????????? | | ??????# "" " "" ##??????????????????????? | | ??????# b * * #####??????????????????? | | ??????# gmg !% % # ;#;####???????????????? | | ?##?+## l !!*]=# % #???????????????? | | ?# R k = ]% #%# #???????????????? | | ? R = *! ! %!%!%k== #???????????????? | | ##+#### """T""" !*[%= @ #???????????????? | | ^ ##+##########= *k ##??????????????? | | """" !# ! ### = #! # ;#??????????????? | | """" # ## # # ####??????????????? | | """" # " " " " # ###+;## #?????????????????? | | """"^ # " " " " # #?????????????????? | | # " " " " k #?????????????????? | | " # #?????????????????? | | ^ ! # # #?????????????????? | | ^ [ ! # # #?????????????????? | | " ##########" #?????????????????? | | ""G"" #????????# #?????????????????? | | #????????# #?????????????????? | | ####+#"#???????# = #?????????????????? | | ???# ###???????## ! ! ! #?????????????????? | | ???# #??????????# ! #########?????????????????? | | ##?# #??????????# ???????????????????? | | "#?# #??????????## #?????????????????? | | #??# #???????????####### #### #?????????????????? | | ##?# #?????????????????### #???#?????????????????? | | "#?# #????????????????????##?????????????????????? | | ##?# #???????????????????????????????????????????? | | #?? #???????????????????????????????????????????? | | #??###???????????????????????????????????????????? | | #????????????????????????????????????????????????? | +----------------------------------------------------+ Best States ------------- Heat Dissipation 64 Energy Generation 25 Energy Capacity 700 Matter Stores 300 Matter Capacity 300 Sight Range 22 Robot Scan Range 20 Terrain Scan Density 10 Armor Coverage 900 Resistance: KI 20 Melee Speed Boost 20 Evasion (%) 40 Targeting Accuracy 20 Core Analysis 6 Recoil Reduction 4 Kinecelleration 30 Salvage Targeting 4 Offensive Hacking 20 Authchip Count 4 Item Schematics ----------------- Hvy. Beamcaster | -7/Zion | Free Riot Gun | -7/Zion | Free Hvy. Riot Gun | -7/Zion | Free Arc Thrower | -7/Zion | Free Battle Rifle | -7/Zion | Free Flamer | -7/Zion | Free Enh. Flamer | -7/Zion | Free Weapon Mount | -6/Factory | Hacked Imp. Utility Shielding | -6/Factory | Hacked Robot Schematics ------------------ None Fabricated ------------ Weapon Mount | x2 | -6/Factory | Authchip Alien Tech Used ----------------- None Achievements -------------- Left-hand Path Challenges ------------ None Game ------ Seed CloakThunderCompressor Manual? 0 Play Time 01:58:25 Cumulative 706.9 hours Start 2023.07.31 @ 02:37:49 End 2023.08.02 @ 02:02:05 Sessions 10 Manual Loads 0 Difficulty Rogue Special Mode None Game No. 646 Rogue 646 Adventurer 0 Explorer 0 Win Type - Total 34 Types 14/2/10/2/0/0/4/1/1 Lore% 97 Gallery% 96 Achievement% 83 Wizard Run 0 Options --------- ASCII 0 Keyboard 0 Movement Numpad Keybinds 0 Fullscreen 1 Font 18/Smallcaps Map View 76x50 Tactical HUD 1 Map Filters NONE Filters NONE Steam 1 RUN: 10ff73b4-6db9-46eb-8b25-67a24b30a3c7